fUSD/lending_fUSD_20260520
["ID","MTS","AMOUNT","RATE_DAILY","PERIOD"]
[422706644,1779280233000,-150.0,0.00014062,2]
[422706646,1779280233000,-359.0,0.00014086,2]
[422706647,1779280233000,-163.0,0.0001409,2]
[422706648,1779280233000,-150.0,0.00014094,2]
[422706594,1779280233000,-150.0,0.00013711,2]
[422706639,1779280233000,-163.0,0.0001404,2]
[422706631,1779280233000,-150.0,0.00013987,2]
[422706635,1779280233000,-150.0,0.00014023,2]
[422706613,1779280233000,-320.890463,0.00013883,2]
[422706620,1779280233000,-1152.7120312,0.00013921,2]
[422706589,1779280233000,-360.0,0.00013699,2]
[422706602,1779280233000,-500.0,0.00013789,2]
[422706597,1779280233000,-150.0,0.00013743,2]
[422706601,1779280233000,-500.0,0.00013789,2]
[422706603,1779280233000,-55761.79382021,0.0001379,2]
[422706598,1779280233000,-150.0,0.0001376,2]
[422706605,1779280233000,-150.0,0.00013809,2]
[422706606,1779280233000,-186.245807,0.00013814,2]
[422706604,1779280233000,-150.0,0.00013807,2]
[422706596,1779280233000,-1275.0,0.0001372,2]
[422706595,1779280233000,-2314.0,0.0001372,2]
[422706600,1779280233000,-150.0,0.00013775,2]
[422706588,1779280233000,-500.0,0.00013698,2]
[422706617,1779280233000,-150.0,0.00013902,2]
[422706599,1779280233000,-150.0,0.0001376,2]
[422706609,1779280233000,-166.66,0.00013836,2]
[422706612,1779280233000,-150.0,0.0001387,2]
[422706618,1779280233000,-150.0,0.00013916,2]
[422706610,1779280233000,-150.0,0.00013838,2]
[422706619,1779280233000,-386.1129354,0.00013921,2]
[422706611,1779280233000,-150.0,0.00013862,2]
[422706615,1779280233000,-150.0,0.00013896,2]
[422706614,1779280233000,-6543.6270634,0.00013891,2]
[422706607,1779280233000,-248.933209,0.00013814,2]
[422706608,1779280233000,-150.0,0.00013821,2]
[422706616,1779280233000,-150.0,0.00013896,2]
[422706690,1779280234000,-777.0,0.0001425,2]
[422706687,1779280234000,-200.0,0.0001425,2]
[422706689,1779280234000,-34185.34111426,0.0001425,2]
[422706681,1779280234000,-150.0,0.00014237,2]
[422706688,1779280234000,-151.0,0.0001425,2]
[422706680,1779280234000,-150.0,0.00014237,2]
[422706685,1779280234000,-9167.45225493,0.0001425,2]
[422706686,1779280234000,-7464.00434,0.0001425,2]
[422706684,1779280234000,-500.0,0.00014249,2]
[422706682,1779280234000,-150.0,0.00014237,2]
[422706703,1779280234000,-150.0,0.00014332,2]
[422706691,1779280234000,-200.0,0.0001425,2]
[422706693,1779280234000,-150.0,0.00014253,2]
[422706702,1779280234000,-150.0,0.00014332,2]
[422706695,1779280234000,-150.0,0.00014305,2]
[422706694,1779280234000,-150.0,0.00014285,2]
[422706696,1779280234000,-150.0,0.00014305,2]
[422706697,1779280234000,-18458.72654843,0.00014308,2]
[422706700,1779280234000,-150.0,0.0001432,2]
[422706698,1779280234000,-150.0,0.00014314,2]
[422706699,1779280234000,-150.0,0.00014317,2]
[422706701,1779280234000,-150.0,0.00014332,2]
[422706704,1779280234000,-150.0,0.00014332,2]
[422706707,1779280234000,-150.0,0.00014332,2]
[422706706,1779280234000,-150.0,0.00014332,2]
[422706683,1779280234000,-166.66,0.00014247,2]
[422706692,1779280234000,-200.0,0.0001425,2]
[422706679,1779280234000,-101578.9381,0.00014232,2]
[422706651,1779280234000,-500.0,0.00014095,2]
[422706677,1779280234000,-150.0,0.00014232,2]
[422706710,1779280234000,-150.0,0.00014349,2]
[422706650,1779280234000,-500.0,0.00014095,2]
[422706652,1779280234000,-42339.26329152,0.00014096,2]
[422706654,1779280234000,-442.0,0.00014101,2]
[422706653,1779280234000,-123173.19090081,0.00014096,2]
[422706649,1779280234000,-500.0,0.00014095,2]
[422706655,1779280234000,-166.66,0.0001411,2]
[422706657,1779280234000,-150.0,0.00014125,2]
[422706658,1779280234000,-241.0,0.0001413,5]
[422706656,1779280234000,-5029.22376837,0.00014114,2]
[422706659,1779280234000,-150.0,0.0001413,2]
[422706662,1779280234000,-500.0,0.00014149,2]
[422706661,1779280234000,-500.0,0.00014149,2]
[422706660,1779280234000,-5000.0,0.00014132,2]
[422706666,1779280234000,-150.0,0.00014169,2]
[422706664,1779280234000,-150.0,0.00014157,2]
[422706663,1779280234000,-150.0,0.00014154,2]
[422706667,1779280234000,-150.0,0.00014169,2]
[422706668,1779280234000,-281.0,0.00014184,2]
[422706669,1779280234000,-150.0,0.00014189,2]
[422706671,1779280234000,-5326.10386394,0.00014205,2]
[422706670,1779280234000,-1748.21021658,0.000142,2]
[422706672,1779280234000,-150.0,0.00014221,2]
[422706673,1779280234000,-360.0,0.00014224,2]
[422706676,1779280234000,-500.0,0.00014231,2]
[422706678,1779280234000,-151.0,0.00014232,2]
[422706675,1779280234000,-500.0,0.00014231,2]
[422706674,1779280234000,-6543.6270634,0.00014228,2]
[422706708,1779280234000,-150.0,0.00014332,2]
[422706665,1779280234000,-650.0,0.00014161,2]
[422706705,1779280234000,-150.0,0.00014332,2]
[422706743,1779280234000,-500.0,0.00014497,2]
[422706754,1779280234000,-500.0,0.00014497,2]
[422706753,1779280234000,-184.10001169,0.00014497,2]
[422706742,1779280234000,-500.0,0.00014497,2]
[422706745,1779280234000,-325.41215962,0.00014497,2]
[422706752,1779280234000,-328.31422029,0.00014497,2]
[422706748,1779280234000,-500.0,0.00014497,2]
[422706746,1779280234000,-500.0,0.00014497,2]
[422706749,1779280234000,-601.7594973,0.00014497,2]
[422706767,1779280234000,-151.0,0.00014498,2]
[422706751,1779280234000,-500.0,0.00014497,2]
[422706750,1779280234000,-500.0,0.00014497,2]
[422706747,1779280234000,-500.0,0.00014497,2]
[422706744,1779280234000,-500.0,0.00014497,2]
[422706756,1779280234000,-500.0,0.00014497,2]
[422706766,1779280234000,-302.0,0.00014498,5]
[422706757,1779280234000,-500.0,0.00014497,2]
[422706761,1779280234000,-300.0,0.00014497,2]
[422706760,1779280234000,-300.0,0.00014497,2]
[422706759,1779280234000,-498.78702962,0.00014497,2]
[422706763,1779280234000,-300.0,0.00014497,2]
[422706758,1779280234000,-500.0,0.00014497,2]
[422706764,1779280234000,-300.0,0.00014497,2]
[422706762,1779280234000,-300.0,0.00014497,2]
[422706765,1779280234000,-417.13114333,0.00014497,2]
[422706768,1779280234000,-19546.54343841,0.00014498,2]
[422706709,1779280234000,-150.0,0.00014344,2]
[422706736,1779280234000,-459.82,0.00014497,2]
[422706738,1779280234000,-500.0,0.00014497,2]
[422706755,1779280234000,-500.0,0.00014497,2]
[422706737,1779280234000,-500.0,0.00014497,2]
[422706714,1779280234000,-10455.58511488,0.0001439,2]
[422706711,1779280234000,-2312.0,0.0001436,2]
[422706713,1779280234000,-166.66,0.00014384,2]
[422706712,1779280234000,-150.0,0.0001438,2]
[422706717,1779280234000,-200.0,0.00014392,2]
[422706716,1779280234000,-200.0,0.00014392,2]
[422706724,1779280234000,-150.0,0.00014424,2]
[422706723,1779280234000,-150.0,0.00014412,2]
[422706728,1779280234000,-150.0,0.00014451,2]
[422706718,1779280234000,-500.0,0.00014396,2]
[422706727,1779280234000,-150.0,0.00014444,2]
[422706715,1779280234000,-200.0,0.00014392,2]
[422706721,1779280234000,-5326.10386394,0.00014408,2]
[422706719,1779280234000,-500.0,0.00014396,2]
[422706720,1779280234000,-21343.2232125,0.00014401,2]
[422706725,1779280234000,-150.0,0.00014441,2]
[422706726,1779280234000,-150.0,0.00014441,2]
[422706729,1779280234000,-150.0,0.00014476,2]
[422706731,1779280234000,-150.0,0.00014487,2]
[422706734,1779280234000,-500.0,0.00014497,2]
[422706733,1779280234000,-296.88308668,0.00014493,2]
[422706732,1779280234000,-2042.36915813,0.00014487,2]
[422706730,1779280234000,-150.0,0.00014487,2]
[422706741,1779280234000,-500.0,0.00014497,2]
[422706735,1779280234000,-500.0,0.00014497,2]
[422706740,1779280234000,-264.34442925,0.00014497,2]
[422706722,1779280234000,-296.88308669,0.00014411,2]
[422706739,1779280234000,-500.0,0.00014497,2]
[422706770,1779280235000,-1715.81439262,0.00014498,2]
[422706769,1779280235000,-760.0,0.00014498,2]
[422706773,1779280235000,-73736.30895821,0.00014498,2]
[422706774,1779280235000,-902.0,0.00014498,2]
[422706772,1779280235000,-500.0,0.00013554,2]
[422706771,1779280235000,-500.0,0.00013554,2]
[422706829,1779280241000,-500.0,0.00013554,2]
[422706828,1779280241000,-500.0,0.00013554,2]
[422706826,1779280241000,-500.0,0.00013554,2]
[422706834,1779280241000,-500.0,0.00013554,2]
[422706827,1779280241000,-500.0,0.00013554,2]
[422706831,1779280241000,-500.0,0.00013554,2]
[422706830,1779280241000,-500.0,0.00013554,2]
[422706825,1779280241000,-500.0,0.00013554,2]
[422706824,1779280241000,-500.0,0.00013554,2]
[422706822,1779280241000,-500.0,0.00013554,2]
[422706823,1779280241000,-500.0,0.00013554,2]
[422706818,1779280241000,-500.0,0.00013554,2]
[422706819,1779280241000,-356.85402338,0.00013554,2]
[422706821,1779280241000,-500.0,0.00013554,2]
[422706817,1779280241000,-500.0,0.00013554,2]
[422706814,1779280241000,-500.0,0.00013554,2]
[422706815,1779280241000,-500.0,0.00013554,2]
[422706812,1779280241000,-500.0,0.00013554,2]
[422706810,1779280241000,-500.0,0.00013554,2]
[422706816,1779280241000,-500.0,0.00013554,2]
[422706813,1779280241000,-417.39953771,0.00013554,2]
[422706811,1779280241000,-510.25401244,0.00013554,2]
[422706809,1779280241000,-500.0,0.00013554,2]
[422706807,1779280241000,-480.09066192,0.00013554,2]
[422706805,1779280241000,-500.0,0.00013554,2]
[422706808,1779280241000,-500.0,0.00013554,2]
[422706806,1779280241000,-500.0,0.00013554,2]
[422706820,1779280241000,-500.0,0.00013554,2]
[422706842,1779280241000,-500.0,0.00013554,2]
[422706832,1779280241000,-500.0,0.00013554,2]
[422706843,1779280241000,-500.0,0.00013554,2]
[422706867,1779280241000,-507.71285999,0.00014498,2]
[422706865,1779280241000,-579.25293646,0.00014498,2]
[422706833,1779280241000,-500.0,0.00013554,2]
[422706861,1779280241000,-71509.97617562,0.00014498,2]
[422706863,1779280241000,-3739.18681228,0.00014498,2]
[422706859,1779280241000,-151.0,0.00014497,2]
[422706855,1779280241000,-500.0,0.00013554,2]
[422706850,1779280241000,-500.0,0.00013554,2]
[422706854,1779280241000,-500.0,0.00013554,2]
[422706857,1779280241000,-538.05394401,0.00013554,2]
[422706852,1779280241000,-500.0,0.00013554,2]
[422706847,1779280241000,-500.0,0.00013554,2]
[422706848,1779280241000,-500.0,0.00013554,2]
[422706858,1779280241000,-12305.81769895,0.00014308,2]
[422706860,1779280241000,-105498.53826086,0.00014498,2]
[422706853,1779280241000,-500.0,0.00013554,2]
[422706844,1779280241000,-500.0,0.00013554,2]
[422706839,1779280241000,-500.0,0.00013554,2]
[422706845,1779280241000,-500.0,0.00013554,2]
[422706840,1779280241000,-500.0,0.00013554,2]
[422706841,1779280241000,-500.0,0.00013554,2]
[422706838,1779280241000,-500.0,0.00013554,2]
[422706835,1779280241000,-500.0,0.00013554,2]
[422706837,1779280241000,-500.0,0.00013554,2]
[422706856,1779280241000,-500.0,0.00013554,2]
[422706851,1779280241000,-500.0,0.00013554,2]
[422706846,1779280241000,-500.0,0.00013554,2]
[422706836,1779280241000,-500.0,0.00013554,2]
[422706849,1779280241000,-500.0,0.00013554,2]
[422706915,1779280259000,173.72256192,0.00011807,30]
[422706916,1779280262000,800.0,0.00028765,120]
[422706918,1779280320000,173.02046355,0.00011807,30]
[422706919,1779280331000,255.402396,0.00028767,120]
[422706920,1779280380000,172.66941436,0.00011807,30]
[422706923,1779280441000,199.39128111,8.865e-05,7]
[422706924,1779280443000,198.51164998,0.00010496,21]
[422706925,1779280468000,426.4068433,0.00028557,120]
[422706929,1779280506000,319.80513247,0.00028557,120]
[422706934,1779280833000,404.0,0.00028767,120]
[422706940,1779281151000,152.0,8.866e-05,7]
[422706941,1779281176000,152.0,8.867e-05,7]
[422706947,1779281251000,150.0,0.0002876,120]
[422706955,1779281341000,1000.0,0.00028766,120]
[422706959,1779281432000,-175.65842008,9.359e-05,2]
[422706958,1779281432000,-177.47989392,9.26e-05,2]
[422706960,1779281432000,-53.28117992,9.359e-05,2]
[422706961,1779281432000,-279.601917,9.451e-05,2]
[422706962,1779281432000,-141.31983808,9.458e-05,2]
[422706971,1779281438000,-158.68016192,9.458e-05,2]
[422706972,1779281438000,-1021.0,9.458e-05,2]
[422706974,1779281438000,-215.20247212,9.602e-05,2]
[422706976,1779281438000,-212.05934768,0.00010275,2]
[422706975,1779281438000,-500.0,9.733e-05,2]
[422706979,1779281438000,-964.11,0.00010275,2]
[422706977,1779281438000,-5000.0,0.00010275,2]
[422706973,1779281438000,-500.0,9.459e-05,2]
[422706978,1779281438000,-9999.99,0.00010275,2]
[422706981,1779281438000,-5308.37228679,0.00010375,2]
[422706980,1779281438000,-999.99,0.00010275,2]
[422707028,1779281441000,-479.85232026,0.00010375,2]
[422707034,1779281443000,-600.0,0.00010275,2]
[422707038,1779281446000,-4400.0,0.00010275,2]
[422707040,1779281446000,-1357.0,0.00010375,2]
[422707039,1779281446000,-3618.99906264,0.00010375,2]
[422707068,1779281447000,-500.0,0.00011098,2]
[422707072,1779281447000,-500.0,0.00011098,2]
[422707062,1779281447000,-500.0,0.00011098,2]
[422707064,1779281447000,-500.0,0.00011098,2]
[422707065,1779281447000,-500.0,0.00011098,2]
[422707063,1779281447000,-235.68540234,0.00011098,2]
[422707066,1779281447000,-429.40998868,0.00011098,2]
[422707061,1779281447000,-500.0,0.00011098,2]
[422707084,1779281447000,-500.0,0.00011098,2]
[422707080,1779281447000,-500.0,0.00011098,2]
[422707078,1779281447000,-500.0,0.00011098,2]
[422707070,1779281447000,-500.0,0.00011098,2]
[422707073,1779281447000,-500.0,0.00011098,2]
[422707075,1779281447000,-500.0,0.00011098,2]
[422707077,1779281447000,-500.0,0.00011098,2]
[422707076,1779281447000,-500.0,0.00011098,2]
[422707079,1779281447000,-500.0,0.00011098,2]
[422707074,1779281447000,-500.0,0.00011098,2]
[422707060,1779281447000,-524.81101754,0.00011098,2]
[422707052,1779281447000,-3344.55636864,0.00010936,2]
[422707059,1779281447000,-500.0,0.00011098,2]
[422707081,1779281447000,-500.0,0.00011098,2]
[422707042,1779281447000,-9999.99,0.00010375,2]
[422707043,1779281447000,-150.99,0.00010375,2]
[422707041,1779281447000,-220590.76693031,0.00010375,2]
[422707044,1779281447000,-2000.0,0.00010411,2]
[422707046,1779281447000,-3298.0,0.00010638,2]
[422707056,1779281447000,-500.0,0.00011098,2]
[422707057,1779281447000,-500.0,0.00011098,2]
[422707048,1779281447000,-9239.23,0.0001069,2]
[422707045,1779281447000,-5631.0,0.0001061,2]
[422707047,1779281447000,-2630.0,0.00010655,2]
[422707049,1779281447000,-5355.0,0.00010715,2]
[422707050,1779281447000,-2395.77,0.00010808,2]
[422707055,1779281447000,-500.0,0.00011098,2]
[422707053,1779281447000,-2000.0,0.00010937,2]
[422707051,1779281447000,-3344.55636868,0.000109,2]
[422707054,1779281447000,-212.05934762,0.00011046,2]
[422707058,1779281447000,-500.0,0.00011098,2]
[422707083,1779281447000,-500.0,0.00011098,2]
[422707091,1779281447000,-500.0,0.00011098,2]
[422707085,1779281447000,-500.0,0.00011098,2]
[422707109,1779281447000,-500.0,0.00011098,2]
[422707103,1779281447000,-500.0,0.00011098,2]
[422707104,1779281447000,-562.33836604,0.00011098,2]
[422707106,1779281447000,-500.0,0.00011098,2]
[422707107,1779281447000,-500.0,0.00011098,2]
[422707110,1779281447000,-500.0,0.00011098,2]
[422707114,1779281447000,-500.0,0.00011098,2]
[422707124,1779281447000,-1308.72541268,0.00011285,2]
[422707113,1779281447000,-500.0,0.00011098,2]
[422707117,1779281447000,-500.0,0.00011098,2]
[422707116,1779281447000,-500.0,0.00011098,2]
[422707123,1779281447000,-19208.90089125,0.00011099,2]
[422707120,1779281447000,-1308.72541268,0.00011099,2]
[422707118,1779281447000,-1308.72541268,0.00011099,2]
[422707121,1779281447000,-19208.90089127,0.00011099,2]
[422707119,1779281447000,-1308.72541268,0.00011099,2]
[422707082,1779281447000,-500.0,0.00011098,2]
[422707105,1779281447000,-500.0,0.00011098,2]
[422707108,1779281447000,-500.0,0.00011098,2]
[422707115,1779281447000,-500.0,0.00011098,2]
[422707111,1779281447000,-500.0,0.00011098,2]
[422707102,1779281447000,-500.0,0.00011098,2]
[422707086,1779281447000,-500.0,0.00011098,2]
[422707088,1779281447000,-500.0,0.00011098,2]
[422707087,1779281447000,-500.0,0.00011098,2]
[422707089,1779281447000,-500.0,0.00011098,2]
[422707099,1779281447000,-500.0,0.00011098,2]
[422707096,1779281447000,-500.0,0.00011098,2]
[422707094,1779281447000,-500.0,0.00011098,2]
[422707098,1779281447000,-500.0,0.00011098,2]
[422707122,1779281447000,-19208.90089125,0.00011099,2]
[422707092,1779281447000,-500.0,0.00011098,2]
[422707095,1779281447000,-500.0,0.00011098,2]
[422707093,1779281447000,-500.0,0.00011098,2]
[422707097,1779281447000,-500.0,0.00011098,2]
[422707100,1779281447000,-500.0,0.00011098,2]
[422707101,1779281447000,-500.0,0.00011098,2]
[422707090,1779281447000,-500.0,0.00011098,2]
[422707112,1779281447000,-500.0,0.00011098,2]
[422707152,1779281448000,-212.05934762,0.00013358,2]
[422707132,1779281448000,-1354.0,0.00012014,2]
[422707134,1779281448000,-625.0,0.00012014,2]
[422707140,1779281448000,-2000.0,0.00012304,2]
[422707144,1779281448000,-152.0,0.00012554,5]
[422707147,1779281448000,-315.0,0.000127,2]
[422707145,1779281448000,-212.05934762,0.00012588,2]
[422707133,1779281448000,-3545.0,0.00012014,2]
[422707141,1779281448000,-1575.34,0.00012329,2]
[422707137,1779281448000,-150.0,0.00012014,2]
[422707125,1779281448000,-150.0,0.00011292,2]
[422707130,1779281448000,-19208.90089125,0.00011897,2]
[422707131,1779281448000,-151.0,0.00012011,2]
[422707135,1779281448000,-1271.0,0.00012014,2]
[422707129,1779281448000,-1308.72541268,0.00011887,2]
[422707127,1779281448000,-3344.55636864,0.00011596,2]
[422707139,1779281448000,-3344.55636864,0.00012257,2]
[422707138,1779281448000,-53208.04,0.00012055,2]
[422707128,1779281448000,-212.05934762,0.00011817,2]
[422707126,1779281448000,-19208.90089125,0.00011296,2]
[422707142,1779281448000,-1308.72541268,0.0001249,2]
[422707136,1779281448000,-1224.0,0.00012014,2]
[422707146,1779281448000,-1000.0,0.000127,2]
[422707143,1779281448000,-19208.90089125,0.00012497,2]
[422707151,1779281448000,-19208.90089125,0.00013098,2]
[422707171,1779281448000,-200.0,0.00013699,2]
[422707172,1779281448000,-166.66,0.00013699,2]
[422707169,1779281448000,-500.0,0.00013698,2]
[422707170,1779281448000,-500.0,0.00013698,2]
[422707167,1779281448000,-500.0,0.00013698,2]
[422707168,1779281448000,-500.0,0.00013698,2]
[422707166,1779281448000,-1308.72541268,0.00013695,2]
[422707164,1779281448000,-2000.0,0.00013671,2]
[422707162,1779281448000,-3344.55636864,0.00013579,2]
[422707163,1779281448000,-150.0,0.00013588,2]
[422707159,1779281448000,-150.0,0.00013488,2]
[422707165,1779281448000,-150.0,0.00013687,2]
[422707158,1779281448000,-150.0,0.00013488,2]
[422707160,1779281448000,-150.0,0.00013488,2]
[422707150,1779281448000,-1308.72541268,0.00013092,2]
[422707148,1779281448000,-308.0,0.000127,2]
[422707154,1779281448000,-150.0,0.00013488,2]
[422707173,1779281448000,-8653.89336183,0.00013699,2]
[422707149,1779281448000,-3344.55636864,0.00012918,2]
[422707155,1779281448000,-150.0,0.00013488,2]
[422707156,1779281448000,-150.0,0.00013488,2]
[422707157,1779281448000,-150.0,0.00013488,2]
[422707161,1779281448000,-150.0,0.00013488,2]
[422707153,1779281448000,-1587.0,0.000134,2]
[422707175,1779281593000,606.0,0.00028,120]
[422707177,1779281736000,319.80513248,0.00028472,120]
[422707180,1779281988000,300.0,0.00028767,120]
[422707181,1779282007000,152.0,8.867e-05,7]
[422707182,1779282008000,500.0,0.00028767,120]
[422707186,1779282106000,200.0,0.00028767,120]
[422707193,1779282279000,10000.0,0.0002876,120]
[422707195,1779282491000,500.0,0.00028767,120]
[422707196,1779282510000,152.0,8.864e-05,7]
[422707197,1779282511000,152.0,8.867e-05,7]
[422707198,1779282512000,152.0,0.00011366,30]
[422707199,1779282540000,1000.0,0.00028766,120]
[422707200,1779282544000,3200.0,8.8e-05,3]
[422707201,1779282546000,5720.50259115,8.9e-05,3]
[422707202,1779282546000,779.49740885,8.9e-05,3]
[422707203,1779282549000,9700.0,9e-05,3]
[422707243,1779282632000,-1382.14437781,9.358e-05,2]
[422707245,1779282632000,-1382.14437781,9.358e-05,2]
[422707252,1779282632000,-1382.14437781,9.358e-05,2]
[422707250,1779282632000,-530.17989403,9.358e-05,2]
[422707241,1779282632000,-1382.14437781,9.358e-05,2]
[422707239,1779282632000,-1382.14437781,9.358e-05,2]
[422707228,1779282632000,-1382.14437781,9.358e-05,2]
[422707254,1779282632000,-1382.14437781,9.358e-05,2]
[422707235,1779282632000,-1382.14437781,9.358e-05,2]
[422707233,1779282632000,-1382.14437781,9.358e-05,2]
[422707234,1779282632000,-1382.14437781,9.358e-05,2]
[422707232,1779282632000,-1382.14437781,9.358e-05,2]
[422707230,1779282632000,-1382.14437781,9.358e-05,2]
[422707231,1779282632000,-1382.14437781,9.358e-05,2]
[422707248,1779282632000,-851.96448378,9.358e-05,2]
[422707229,1779282632000,-1382.14437781,9.358e-05,2]
[422707225,1779282632000,-15991.9408,9.259e-05,2]
[422707236,1779282632000,-1382.14437781,9.358e-05,2]
[422707226,1779282632000,-2500.0,9.259e-05,2]
[422707224,1779282632000,-6406.5915,9.258e-05,2]
[422707223,1779282632000,-144917.7937049,9.258e-05,2]
[422707222,1779282632000,-171849.8943951,9.258e-05,2]
[422707220,1779282632000,-1130.51085266,9.172e-05,2]
[422707221,1779282632000,-154.981,9.172e-05,2]
[422707219,1779282632000,-584.70314734,9.172e-05,2]
[422707218,1779282632000,-150.0,9.159e-05,2]
[422707217,1779282632000,-48.29685266,9.159e-05,2]
[422707216,1779282632000,-101.70314734,9.159e-05,2]
[422707214,1779282632000,-152.0,6.268e-05,2]
[422707215,1779282632000,-250.0,8.282e-05,2]
[422707227,1779282632000,-1382.14437781,9.358e-05,2]
[422707237,1779282632000,-1382.14437781,9.358e-05,2]
[422707238,1779282632000,-1382.14437781,9.358e-05,2]
[422707247,1779282632000,-1382.14437781,9.358e-05,2]
[422707288,1779282632000,-1382.14437781,9.358e-05,2]
[422707287,1779282632000,-1382.14437781,9.358e-05,2]
[422707286,1779282632000,-1382.14437781,9.358e-05,2]
[422707283,1779282632000,-1382.14437781,9.358e-05,2]
[422707282,1779282632000,-1382.14437781,9.358e-05,2]
[422707278,1779282632000,-1382.14437781,9.358e-05,2]
[422707276,1779282632000,-1382.14437781,9.358e-05,2]
[422707281,1779282632000,-1382.14437781,9.358e-05,2]
[422707291,1779282632000,-1382.14437781,9.358e-05,2]
[422707292,1779282632000,-1368.32293403,9.358e-05,2]
[422707293,1779282632000,-1368.32293403,9.358e-05,2]
[422707296,1779282632000,-1368.32293403,9.358e-05,2]
[422707295,1779282632000,-1368.32293403,9.358e-05,2]
[422707294,1779282632000,-1368.32293403,9.358e-05,2]
[422707290,1779282632000,-1382.14437781,9.358e-05,2]
[422707285,1779282632000,-1382.14437781,9.358e-05,2]
[422707246,1779282632000,-1382.14437781,9.358e-05,2]
[422707274,1779282632000,-1382.14437781,9.358e-05,2]
[422707289,1779282632000,-1382.14437781,9.358e-05,2]
[422707256,1779282632000,-1382.14437781,9.358e-05,2]
[422707272,1779282632000,-1382.14437781,9.358e-05,2]
[422707267,1779282632000,-1382.14437781,9.358e-05,2]
[422707270,1779282632000,-1382.14437781,9.358e-05,2]
[422707266,1779282632000,-1382.14437781,9.358e-05,2]
[422707269,1779282632000,-1382.14437781,9.358e-05,2]
[422707268,1779282632000,-1382.14437781,9.358e-05,2]
[422707260,1779282632000,-1382.14437781,9.358e-05,2]
[422707263,1779282632000,-1382.14437781,9.358e-05,2]
[422707262,1779282632000,-1382.14437781,9.358e-05,2]
[422707264,1779282632000,-1382.14437781,9.358e-05,2]
[422707273,1779282632000,-1382.14437781,9.358e-05,2]
[422707284,1779282632000,-1382.14437781,9.358e-05,2]
[422707258,1779282632000,-1382.14437781,9.358e-05,2]
[422707305,1779282633000,-1368.32293403,9.358e-05,2]
[422707324,1779282633000,-1394.42024291,9.358e-05,2]
[422707314,1779282633000,-1368.32293403,9.358e-05,2]
[422707310,1779282633000,-1368.32293403,9.358e-05,2]
[422707307,1779282633000,-1368.32293403,9.358e-05,2]
[422707306,1779282633000,-1368.32293403,9.358e-05,2]
[422707311,1779282633000,-1114.18916338,9.358e-05,2]
[422707309,1779282633000,-1368.32293403,9.358e-05,2]
[422707297,1779282633000,-1368.32293403,9.358e-05,2]
[422707308,1779282633000,-1368.32293403,9.358e-05,2]
[422707312,1779282633000,-254.13377065,9.358e-05,2]
[422707303,1779282633000,-1368.32293403,9.358e-05,2]
[422707302,1779282633000,-1368.32293403,9.358e-05,2]
[422707301,1779282633000,-1368.32293403,9.358e-05,2]
[422707298,1779282633000,-1368.32293403,9.358e-05,2]
[422707325,1779282633000,-1394.42024291,9.358e-05,2]
[422707299,1779282633000,-1368.32293403,9.358e-05,2]
[422707300,1779282633000,-1368.32293403,9.358e-05,2]
[422707304,1779282633000,-1368.32293403,9.358e-05,2]
[422707316,1779282633000,-1368.32293403,9.358e-05,2]
[422707323,1779282633000,-1394.42024291,9.358e-05,2]
[422707318,1779282633000,-1368.32293403,9.358e-05,2]
[422707337,1779282633000,-4230.82512797,9.359e-05,2]
[422707336,1779282633000,-93039.80480287,9.359e-05,2]
[422707334,1779282633000,-1394.42024291,9.358e-05,2]
[422707327,1779282633000,-1394.42024291,9.358e-05,2]
[422707333,1779282633000,-1394.42024291,9.358e-05,2]
[422707332,1779282633000,-1394.42024291,9.358e-05,2]
[422707331,1779282633000,-1394.42024291,9.358e-05,2]
[422707313,1779282633000,-1368.32293403,9.358e-05,2]